bitfinex-derivatives/quotes_BTCF0:USTF0_20220102
["timestamp","ask_amount","ask_price","bid_price","bid_amount"]
[1641144599630,0.14033567,47655.0,47654.0,0.00697]
[1641144600228,0.32933567,47655.0,47654.0,0.00697]
[1641144600429,0.32933567,47655.0,47648.0,0.02098712]
[1641144600631,0.17303,47654.0,47648.0,0.02098712]
[1641144600830,0.32933567,47655.0,47648.0,0.02098712]
[1641144601030,0.32933567,47655.0,47654.0,0.00697]
[1641144601632,0.14033567,47655.0,47654.0,0.00697]
[1641144602034,0.35719125,47657.0,47654.0,0.00697]
[1641144602233,0.19,47655.0,47654.0,0.00697]
[1641144602433,0.19581281,47655.0,47654.0,0.00697]
[1641144602833,0.19581281,47655.0,47654.0,0.12622393]
[1641144603234,0.19581281,47655.0,47654.0,0.00697]
[1641144604236,0.19681281,47655.0,47654.0,0.00697]
[1641144604935,0.19681281,47655.0,47654.0,0.18697]
[1641144605337,0.19681281,47655.0,47654.0,0.32730567]
[1641144605536,0.00581281,47655.0,47654.0,0.4675343]
[1641144605737,0.00581281,47655.0,47654.0,0.47945878]
[1641144605937,0.35719125,47661.0,47655.0,1.101]
[1641144606237,0.35719125,47661.0,47660.0,0.18697]
[1641144606437,0.35719125,47661.0,47660.0,0.29623883]
[1641144606637,9.125e-05,47661.0,47660.0,0.27526]
[1641144606836,0.59531876,47662.0,47660.0,0.41548331]
[1641144607040,0.35707622,47670.0,47660.0,0.41548331]
[1641144607337,0.35707622,47670.0,47669.0,0.00697]
[1641144608236,0.59531876,47672.0,47668.0,0.14033567]
[1641144608436,0.009794,47677.0,47668.0,0.14033567]
[1641144608437,0.191,47670.0,47668.0,0.14033567]
[1641144609037,0.191,47670.0,47669.0,0.00697]
[1641144609438,0.191,47670.0,47668.0,0.14033567]
[1641144609641,0.191,47670.0,47669.0,0.00697]
[1641144609838,0.191,47670.0,47668.0,0.14033567]
[1641144610039,0.191,47670.0,47669.0,0.00697]
[1641144610339,0.381,47670.0,47669.0,0.00697]
[1641144610740,0.47042948,47670.0,47669.0,0.00697]
[1641144611541,0.08942948,47670.0,47669.0,0.00697]
[1641144612342,0.28142948,47670.0,47669.0,0.00697]
[1641144612743,0.192,47670.0,47669.0,0.00697]
[1641144612943,0.192,47670.0,47668.0,0.9578999]
[1641144613342,0.192,47670.0,47669.0,0.00697]
[1641144613544,0.28142948,47670.0,47669.0,0.00697]
[1641144613744,0.08942948,47670.0,47669.0,0.00697]
[1641144614343,0.28142948,47670.0,47669.0,0.00697]
[1641144614542,0.28142948,47670.0,47668.0,0.9578999]
[1641144615446,0.08942948,47669.0,47668.0,0.9578999]
[1641144616553,0.28242948,47669.0,47668.0,0.9578999]
[1641144616952,0.45545948,47669.0,47668.0,0.9578999]
[1641144617155,0.44779,47669.0,47668.0,0.9578999]
[1641144617554,0.44779,47669.0,47668.0,0.81756423]
[1641144617757,0.08176,47669.0,47668.0,0.81756423]
[1641144617954,0.08176,47669.0,47667.0,0.00697]
[1641144618354,0.27276,47669.0,47667.0,0.00697]
[1641144618554,0.191,47669.0,47667.0,0.00697]
[1641144619656,0.5297846,47676.0,47667.0,0.00697]
[1641144619857,0.5297846,47676.0,47673.0,0.00697]
[1641144620058,0.17303,47676.0,47673.0,0.00697]
[1641144620458,0.36303,47676.0,47673.0,0.00697]
[1641144620860,0.36303,47676.0,47663.0,0.32033567]
[1641144620861,0.36303,47676.0,47663.0,0.14033567]
[1641144621162,0.17303,47673.0,47663.0,0.14730567]
[1641144621460,0.00503028,47672.0,47663.0,0.14730567]
[1641144621661,0.00503028,47672.0,47664.0,0.11922843]
[1641144621961,0.00503028,47672.0,47667.0,0.00697]
[1641144622262,0.17303,47671.0,47669.0,0.00697]
[1641144622464,0.19403028,47672.0,47663.0,0.14033567]
[1641144622662,0.05681,47671.0,47663.0,0.14033567]
[1641144622863,0.00503028,47670.0,47664.0,0.1192301]
[1641144623062,0.00503028,47670.0,47667.0,0.00697]
[1641144623461,0.00503028,47670.0,47663.0,0.14033567]
[1641144623662,0.00503028,47670.0,47667.0,0.00697]
[1641144624462,0.19403028,47670.0,47667.0,0.00697]
[1641144624865,0.08943102,47669.0,47667.0,0.81756423]
[1641144625067,0.17303,47668.0,47667.0,0.81756423]
[1641144625267,0.19401695,47668.0,47663.0,0.14033567]
[1641144625467,0.17303,47667.0,47663.0,0.14033567]
[1641144625668,0.19401695,47668.0,47663.0,0.14033567]
[1641144625867,0.17303,47665.0,47663.0,0.14730567]
[1641144626271,0.00503028,47664.0,47663.0,0.14730567]
[1641144626670,0.00503028,47664.0,47663.0,0.14033567]
[1641144627071,0.0944613,47664.0,47663.0,0.14033567]
[1641144627271,0.08943102,47664.0,47663.0,0.14033567]
[1641144627470,0.26246102,47664.0,47663.0,0.14033567]
[1641144627673,0.0944613,47664.0,47663.0,0.14033567]
[1641144627875,0.0944613,47664.0,47663.0,0.14730567]
[1641144628272,0.2834613,47664.0,47663.0,0.14730567]
[1641144629573,0.0944613,47664.0,47663.0,0.14730567]
[1641144630275,0.2824613,47664.0,47663.0,0.14730567]
[1641144631674,0.0944613,47664.0,47663.0,0.14730567]
[1641144632374,0.2834613,47664.0,47663.0,0.14730567]
[1641144633576,0.0944613,47664.0,47663.0,0.14730567]
[1641144634378,0.2844613,47664.0,47663.0,0.14730567]
[1641144635178,0.2844613,47664.0,47663.0,0.14033567]
[1641144635779,0.0944613,47664.0,47663.0,0.94945452]
[1641144636280,0.2834613,47664.0,47663.0,0.94945452]
[1641144636679,0.2834613,47664.0,47663.0,0.14033567]
[1641144637278,0.2834613,47664.0,47663.0,0.94945452]
[1641144637679,0.0944613,47664.0,47663.0,0.94945452]
[1641144638381,0.2844613,47664.0,47663.0,0.94945452]
[1641144639882,0.0944613,47664.0,47663.0,0.94945452]
[1641144640284,0.2844613,47664.0,47663.0,0.94945452]
[1641144641287,0.3534113,47664.0,47663.0,0.94945452]
[1641144641685,0.1634113,47664.0,47663.0,0.94945452]
[1641144641901,0.1634113,47664.0,47663.0,0.95642452]
[1641144642187,0.1634113,47664.0,47663.0,0.94945452]
[1641144642387,0.3534113,47664.0,47663.0,0.94945452]
[1641144642787,0.3534113,47664.0,47663.0,0.95642452]
[1641144643488,0.3534113,47664.0,47663.0,0.14730567]
[1641144643688,0.1634113,47664.0,47663.0,0.14730567]
[1641144643889,0.0944613,47664.0,47663.0,0.14033567]
[1641144644089,0.0944613,47664.0,47663.0,0.95642452]
[1641144644290,0.2844613,47664.0,47663.0,0.95642452]
[1641144645592,0.2844613,47664.0,47663.0,0.94945452]
[1641144645794,0.0944613,47664.0,47663.0,0.95642452]
[1641144646292,0.2844613,47664.0,47663.0,0.95642452]
[1641144646790,0.2844613,47664.0,47663.0,0.14730567]
[1641144646990,0.2844613,47664.0,47663.0,0.14033567]
[1641144647591,0.2844613,47664.0,47663.0,0.14730567]
[1641144647793,0.0944613,47664.0,47663.0,0.14730567]
[1641144648190,0.0944613,47664.0,47663.0,0.14033567]
[1641144648395,0.2844613,47664.0,47663.0,0.14730567]
[1641144649404,0.2844613,47664.0,47663.0,0.14033567]
[1641144649603,0.2844613,47664.0,47663.0,0.14730567]
[1641144649803,0.0944613,47664.0,47663.0,0.14033567]
[1641144650206,0.60083344,47664.0,47663.0,0.14033567]
[1641144650412,0.78983344,47664.0,47663.0,0.14033567]
[1641144650809,0.19403028,47664.0,47663.0,0.14033567]
[1641144651014,0.28347081,47664.0,47663.0,0.14730567]
[1641144651610,0.09447081,47664.0,47663.0,0.14730567]
[1641144652311,0.28347081,47664.0,47663.0,0.14730567]
[1641144652813,0.28347081,47664.0,47663.0,0.25957569]
[1641144653011,0.28347081,47664.0,47663.0,0.14033567]
[1641144653211,0.40347081,47664.0,47663.0,0.14033567]
[1641144653412,0.28347081,47664.0,47663.0,0.14033567]
[1641144653616,0.21447081,47664.0,47663.0,0.14033567]
[1641144653812,0.09447081,47664.0,47663.0,0.14033567]
[1641144654412,0.28147081,47664.0,47663.0,0.14033567]
[1641144655613,0.09447081,47664.0,47663.0,0.14033567]
[1641144656413,0.28147081,47664.0,47663.0,0.14033567]
[1641144656613,0.45450081,47664.0,47663.0,0.14033567]
[1641144657812,0.26750081,47664.0,47663.0,0.14033567]
[1641144658412,0.45450081,47664.0,47663.0,0.14033567]
[1641144658915,0.28147081,47664.0,47663.0,0.14033567]
[1641144659813,0.09447081,47664.0,47663.0,0.14033567]
[1641144660413,0.28147081,47664.0,47663.0,0.14033567]
[1641144660814,0.28147081,47664.0,47663.0,0.14730567]
[1641144661814,0.09447081,47664.0,47663.0,0.14730567]
[1641144662215,0.09447081,47664.0,47663.0,0.49402398]
[1641144662414,0.28147081,47664.0,47663.0,0.49402398]
[1641144663018,1.59329872,47664.0,47663.0,0.49402398]
[1641144663615,1.50385819,47664.0,47663.0,0.49402398]
[1641144663823,1.31685819,47664.0,47663.0,0.49402398]
[1641144664417,1.59329872,47664.0,47663.0,0.61326723]
[1641144665118,1.59329872,47664.0,47663.0,0.26654892]
[1641144665317,0.28147081,47664.0,47663.0,0.26654892]
[1641144665716,0.09447081,47664.0,47663.0,0.26654892]
[1641144666218,0.09447081,47664.0,47663.0,1.07566777]
[1641144666417,0.28447081,47664.0,47663.0,1.07566777]
[1641144666921,0.28447081,47664.0,47663.0,0.26654892]
[1641144669921,0.09447081,47664.0,47663.0,0.26654892]
[1641144670521,0.28547081,47664.0,47663.0,0.26654892]
[1641144671723,0.09447081,47664.0,47663.0,0.26654892]
[1641144672522,0.28747081,47664.0,47663.0,0.26654892]
[1641144673824,0.09447081,47664.0,47663.0,0.26654892]
[1641144674426,0.28447081,47664.0,47663.0,0.26654892]
[1641144675826,0.09447081,47664.0,47663.0,0.26654892]
[1641144676427,0.28447081,47664.0,47663.0,0.26654892]
[1641144677728,0.09447081,47664.0,47663.0,0.26654892]
[1641144678429,0.28547081,47664.0,47663.0,0.26654892]
[1641144678627,0.19603028,47664.0,47663.0,0.26654892]
[1641144679028,0.79220374,47664.0,47663.0,0.26654892]
[1641144679730,0.00503028,47664.0,47663.0,0.26654892]
[1641144679929,0.09445826,47664.0,47663.0,0.26654892]
[1641144680133,0.08942798,47664.0,47663.0,0.26654892]
[1641144680330,0.09445826,47664.0,47663.0,0.26654892]
[1641144680529,0.28445826,47664.0,47663.0,0.26654892]
[1641144680732,0.19503028,47664.0,47663.0,0.26654892]
[1641144680931,0.19503028,47664.0,47663.0,1.0743152]
[1641144680932,0.55254153,47664.0,47663.0,1.0743152]
[1641144682034,0.36254153,47664.0,47663.0,1.0743152]
[1641144682632,0.55254153,47664.0,47663.0,1.0743152]
[1641144683832,0.36254153,47664.0,47663.0,1.0743152]
[1641144684632,0.55454153,47664.0,47663.0,1.0743152]
[1641144684835,0.55454153,47664.0,47663.0,1.08623779]
[1641144685234,0.55454153,47664.0,47663.0,0.27847151]
[1641144685533,0.19703028,47664.0,47663.0,0.27847151]
[1641144685933,0.00503028,47664.0,47663.0,0.29945127]
[1641144686333,0.35751125,47666.0,47663.0,0.29945127]
[1641144686334,0.00503028,47665.0,47663.0,0.29945127]
[1641144686534,0.19,47664.0,47663.0,0.29945127]
[1641144686734,0.19,47664.0,47663.0,0.18020802]
[1641144686933,0.19503028,47664.0,47663.0,0.01889259]
[1641144687132,0.19503028,47664.0,47663.0,0.00697]
[1641144687336,0.19503028,47664.0,47663.0,0.14730567]
[1641144687934,0.00503028,47664.0,47663.0,0.14730567]
[1641144688636,0.19,47664.0,47663.0,0.72539559]
[1641144689037,0.19503028,47664.0,47663.0,0.72539559]
[1641144689337,0.19503028,47664.0,47663.0,0.74637541]
[1641144689539,0.19503028,47664.0,47663.0,0.18020781]
[1641144690639,0.38503028,47664.0,47663.0,0.18020781]
[1641144691942,0.00503028,47664.0,47663.0,0.18020781]
[1641144692343,0.36271662,47664.0,47663.0,0.18020781]
[1641144692542,0.55371662,47664.0,47663.0,0.18020781]
[1641144692943,0.55371662,47664.0,47663.0,0.36020781]
[1641144693143,0.55371662,47664.0,47663.0,0.24020781]
[1641144693343,0.55371662,47664.0,47663.0,0.36020781]
[1641144693844,0.00503028,47664.0,47663.0,0.36020781]
[1641144694044,0.00503028,47664.0,47663.0,0.18020781]
[1641144694644,0.19503028,47664.0,47663.0,0.18020781]
[1641144695044,0.19503028,47664.0,47663.0,0.36020781]
[1641144695246,0.19503028,47664.0,47663.0,0.18020781]
[1641144695449,0.28445786,47664.0,47663.0,0.36020781]
[1641144695650,0.28445786,47664.0,47663.0,0.18020781]
[1641144695946,0.09445786,47664.0,47663.0,0.36020781]
[1641144696549,0.28445786,47664.0,47663.0,0.18020781]
[1641144696748,0.79121266,47664.0,47663.0,0.18020781]
[1641144697149,0.19503028,47664.0,47663.0,0.34828549]
[1641144697349,0.28445735,47664.0,47663.0,0.36020768]
[1641144697852,0.09445735,47664.0,47663.0,0.36020768]
[1641144698049,0.00503028,47664.0,47663.0,0.18020768]
[1641144698249,0.60120985,47664.0,47663.0,0.18020768]
[1641144698448,0.60120985,47664.0,47663.0,0.36020768]
[1641144698650,0.79220985,47664.0,47663.0,0.36020768]
[1641144699051,0.79220985,47664.0,47663.0,0.18020768]
[1641144699949,0.19603028,47664.0,47663.0,0.18020768]
[1641144700150,0.00503028,47664.0,47663.0,0.18020768]
[1641144700553,0.19503028,47664.0,47663.0,0.18020768]
[1641144700854,0.79120985,47664.0,47663.0,0.18020768]
[1641144701753,0.97403385,47664.0,47663.0,0.01192219]
[1641144701952,0.99502283,47664.0,47649.0,1.9043]
[1641144702253,0.17303,47653.0,47639.0,0.3397]
[1641144702451,0.17303,47642.0,47639.0,0.3397]
[1641144702653,0.24472,47642.0,47639.0,0.3397]
[1641144702855,0.24472,47642.0,47634.0,0.02099306]
[1641144703253,0.24472,47642.0,47641.0,0.01192792]
[1641144703454,0.27236428,47642.0,47641.0,0.01192792]
[1641144703653,0.39170142,47642.0,47631.0,0.14033567]
[1641144703854,0.17303,47636.0,47631.0,0.14033567]
[1641144704254,0.17303,47632.0,47631.0,0.14033567]
[1641144704454,0.2536,47632.0,47631.0,0.14033567]
[1641144704855,0.25863213,47632.0,47631.0,0.15226525]
[1641144705457,0.13863213,47632.0,47631.0,0.15226525]
[1641144705681,0.25863213,47632.0,47631.0,0.15226525]
[1641144705882,0.25863213,47632.0,47631.0,0.01192958]
[1641144706083,0.85514036,47632.0,47631.0,0.01192958]
[1641144706283,0.85614036,47632.0,47627.0,0.01192958]
[1641144706488,0.05403,47628.0,47626.0,0.02]
[1641144706685,0.001,47627.0,47621.0,0.14033567]
[1641144706884,0.001,47627.0,47609.0,1.67347286]
[1641144706885,0.17403,47622.0,47609.0,1.67347286]
[1641144707092,0.17303,47617.0,47609.0,1.67347286]
[1641144707486,0.17303,47613.0,47609.0,1.67347286]
[1641144707685,0.17303,47613.0,47610.0,0.14033567]
[1641144707885,0.00503213,47613.0,47611.0,0.00697]
[1641144708285,0.00503213,47616.0,47611.0,0.00697]
[1641144708486,0.00503213,47616.0,47613.0,0.00697]
[1641144708686,0.17303,47617.0,47613.0,0.00697]
[1641144708989,0.14033567,47620.0,47607.0,1.67347286]
[1641144708990,0.19503973,47614.0,47607.0,1.67347286]
[1641144709189,0.17303,47608.0,47607.0,1.67347286]
[1641144709487,0.26778,47608.0,47607.0,1.67347286]
[1641144709686,0.54845134,47608.0,47607.0,1.67347286]
[1641144710288,0.54845134,47608.0,47607.0,1.63397286]
[1641144710487,0.54845134,47608.0,47600.0,0.00697]
[1641144710691,0.17303,47601.0,47600.0,0.00697]
[1641144710888,0.17403,47601.0,47595.0,1.63397286]
[1641144711088,0.17403,47596.0,47595.0,1.63397286]
[1641144711289,0.26180231,47596.0,47595.0,1.57947286]
[1641144711489,0.26180231,47596.0,47584.0,1.79241301]
[1641144711689,0.45370134,47589.0,47584.0,1.79241301]
[1641144711889,0.17403,47585.0,47584.0,1.79241301]
[1641144712090,0.26815,47585.0,47567.0,0.14033567]
[1641144712290,0.17303,47577.0,47567.0,0.14033567]
[1641144712492,0.17403,47577.0,47567.0,0.14033567]
[1641144712690,0.17403,47572.0,47567.0,0.14033567]
[1641144712891,0.001,47568.0,47567.0,0.14033567]
[1641144713294,0.001,47568.0,47567.0,0.14730567]
[1641144714693,0.19,47568.0,47567.0,0.14730567]
[1641144715898,0.001,47568.0,47567.0,0.14730567]
[1641144716695,0.19,47568.0,47567.0,0.14730567]
[1641144717596,0.189,47568.0,47567.0,0.14730567]
[1641144718096,0.14033567,47574.0,47567.0,0.14730567]
[1641144718297,0.14033567,47574.0,47567.0,0.14033567]
[1641144718501,0.14033567,47574.0,47573.0,0.00697]
[1641144718700,0.32933567,47574.0,47573.0,0.00697]
[1641144719096,0.32933567,47574.0,47567.0,0.14033567]
[1641144719298,0.41321567,47574.0,47567.0,0.14033567]
[1641144719699,0.41321567,47574.0,47567.0,0.14730567]
[1641144719997,0.22521567,47574.0,47567.0,0.14033567]
[1641144720197,0.001,47569.0,47567.0,0.14033567]
[1641144720399,0.001,47568.0,47567.0,0.14033567]
[1641144720599,0.193,47569.0,47567.0,0.14033567]
[1641144720799,0.02102334,47584.0,47568.0,0.18]
[1641144721000,0.19404883,47594.0,47578.0,0.00697]
[1641144721199,0.19404883,47594.0,47578.0,0.09126]
[1641144721399,0.17303,47593.0,47578.0,0.27126]
[1641144721598,0.02101883,47594.0,47587.0,0.00697]
[1641144721799,0.001,47588.0,47587.0,0.00697]
[1641144722398,0.14033567,47590.0,47587.0,0.00697]
[1641144722600,0.192,47588.0,47587.0,0.00697]
[1641144723299,0.193,47588.0,47587.0,0.00697]
[1641144723900,0.0092575,47588.0,47586.0,0.00697]
[1641144724101,0.001,47587.0,47586.0,0.00697]
[1641144724500,0.0092575,47587.0,47586.0,0.00697]
[1641144724700,0.2002575,47587.0,47586.0,0.00697]
[1641144726006,0.0092575,47587.0,47586.0,0.00697]
[1641144726203,0.09932929,47587.0,47586.0,0.36202055]
[1641144726602,0.28632929,47587.0,47586.0,0.52002055]
[1641144727202,0.28632929,47587.0,47586.0,0.16497]
[1641144727402,0.28532929,47587.0,47586.0,0.16497]
[1641144728003,0.09832929,47587.0,47586.0,0.00697]
[1641144728609,0.28332929,47587.0,47586.0,0.16397]
[1641144729105,0.28332929,47587.0,47586.0,0.75571565]
[1641144729905,0.1932575,47587.0,47586.0,0.75571565]
[1641144730107,0.0082575,47587.0,47586.0,0.59871565]
[1641144730305,0.0082575,47587.0,47586.0,0.00697]
[1641144730507,0.0082575,47588.0,47586.0,0.00697]
[1641144730707,0.1932575,47587.0,47586.0,0.17497]
[1641144734008,0.0082575,47587.0,47586.0,0.00697]
[1641144734409,0.0082575,47588.0,47586.0,0.00697]
[1641144734609,0.185,47587.0,47586.0,0.17497]
[1641144734910,0.1932575,47587.0,47586.0,0.17497]
[1641144735308,0.1932575,47587.0,47586.0,0.168]
[1641144735908,0.0082575,47587.0,47584.0,0.00697]
[1641144736610,0.195,47587.0,47584.0,0.00697]
[1641144737011,0.0082575,47586.0,47584.0,0.00697]
[1641144737910,0.0082575,47586.0,47581.0,0.00697]
[1641144738111,0.17303,47585.0,47580.0,0.14033567]
[1641144738312,0.17303,47585.0,47580.0,0.14730567]
[1641144738514,0.0082575,47584.0,47580.0,0.14730567]
[1641144738716,0.0082575,47584.0,47580.0,0.14033567]
[1641144738911,0.0082575,47584.0,47580.0,0.14730567]
[1641144739313,0.0082575,47584.0,47583.0,0.00697]
[1641144739515,0.36574445,47584.0,47583.0,0.00697]
[1641144740713,0.2022575,47584.0,47583.0,0.00697]
[1641144740915,0.2022575,47584.0,47575.0,0.80037134]
[1641144740916,0.2022575,47584.0,47575.0,0.93144565]
[1641144741115,0.17303,47580.0,47575.0,0.93144565]
[1641144741321,0.17303,47580.0,47576.0,0.00697]
[1641144741515,0.0082575,47579.0,47575.0,0.93144565]
[1641144741715,0.1013575,47579.0,47575.0,0.93144565]
[1641144742016,0.0082575,47578.0,47575.0,0.73208132]
[1641144742217,0.001,47576.0,47575.0,0.73905132]
[1641144742417,0.001,47576.0,47575.0,0.59871565]
[1641144742617,0.1982575,47576.0,47575.0,0.16897]
[1641144742818,0.1982575,47576.0,47575.0,0.162]
[1641144743922,0.33859317,47576.0,47575.0,0.162]
[1641144744621,0.33459317,47576.0,47570.0,0.59174565]
[1641144744820,0.001,47571.0,47570.0,0.59174565]
[1641144745422,0.0092575,47571.0,47564.0,0.60153965]
[1641144745621,0.0082575,47574.0,47564.0,0.60153965]
[1641144745822,0.0082575,47570.0,47564.0,0.60153965]
[1641144746023,0.0082575,47573.0,47564.0,0.60153965]
[1641144746225,0.0082575,47569.0,47564.0,0.60850965]
[1641144746428,0.0082575,47569.0,47564.0,0.60153965]
[1641144746626,0.27138,47569.0,47564.0,0.59174565]
[1641144746826,0.0082575,47568.0,47564.0,0.59174565]
[1641144747240,0.0082575,47568.0,47567.0,0.00697]
[1641144747641,0.0082575,47568.0,47567.0,0.18697]
[1641144747839,0.35748695,47579.0,47567.0,0.18697]
[1641144748040,0.35748695,47576.0,47574.0,0.14033567]
[1641144748641,0.51948695,47576.0,47574.0,0.32533567]
[1641144749045,0.00715557,47575.0,47574.0,0.33230567]
[1641144750242,0.00715557,47575.0,47574.0,0.14730567]
[1641144750641,0.17315557,47575.0,47574.0,0.33530567]
[1641144751140,0.166,47575.0,47574.0,0.33530567]
[1641144751340,0.17315557,47575.0,47574.0,0.33530567]
[1641144752040,0.00715557,47575.0,47574.0,0.14730567]
[1641144752441,0.00715557,47582.0,47574.0,0.14730567]
[1641144752742,0.18018557,47582.0,47574.0,0.33533567]
[1641144752943,0.00715557,47575.0,47574.0,0.33533567]
[1641144753141,0.00715557,47581.0,47574.0,0.34230567]
[1641144753643,0.00715557,47575.0,47574.0,0.33533567]
[1641144753843,0.00715557,47580.0,47574.0,0.33533567]
[1641144754045,0.53051695,47582.0,47577.0,0.00697]
[1641144754343,0.00021022,47578.0,47574.0,0.14033567]
[1641144754553,0.58987695,47582.0,47574.0,0.14033567]
[1641144754754,0.72487695,47582.0,47577.0,0.177]
[1641144754953,0.00021025,47578.0,47577.0,0.177]
[1641144756156,0.00021025,47578.0,47574.0,0.14033567]
[1641144756356,0.35748695,47581.0,47574.0,0.14033567]
[1641144756757,0.158,47578.0,47574.0,0.32733567]
[1641144756956,0.158,47578.0,47575.0,0.00697]
[1641144757156,0.158,47578.0,47574.0,0.32733567]
[1641144757759,0.10312127,47577.0,47574.0,0.32733567]
[1641144757959,0.10312127,47577.0,47574.0,0.14033567]
[1641144758759,0.10312127,47577.0,47574.0,0.33033567]
[1641144759260,1.31078549,47579.0,47574.0,0.33033567]
[1641144759460,1.31078549,47578.0,47574.0,0.33033567]
[1641144759660,1.31078549,47578.0,47576.0,0.00697]
[1641144759862,0.001,47577.0,47576.0,0.00697]
[1641144760660,0.001,47577.0,47576.0,0.19697]
[1641144761061,0.001,47577.0,47576.0,0.19]
[1641144761663,0.10412127,47577.0,47576.0,0.19]
[1641144761861,0.16827127,47577.0,47576.0,0.19]
[1641144762061,0.16827127,47577.0,47574.0,0.14033567]
[1641144762360,0.001,47575.0,47574.0,0.14033567]
[1641144762760,0.001,47575.0,47574.0,0.33033567]
[1641144763061,0.16727127,47577.0,47574.0,0.33033567]
[1641144763663,0.16727127,47577.0,47576.0,0.00697]
[1641144763864,0.001,47577.0,47576.0,0.00697]
[1641144764061,0.001,47577.0,47574.0,0.14033567]
[1641144764264,1.31078549,47579.0,47574.0,0.14033567]
[1641144764661,1.31078549,47579.0,47578.0,0.00697]
[1641144764862,1.45678549,47579.0,47578.0,0.00697]
[1641144765061,1.45678549,47579.0,47574.0,0.33330567]
[1641144765261,1.45578549,47579.0,47574.0,0.33330567]
[1641144766765,1.46978549,47579.0,47576.0,0.00697]
[1641144766963,0.001,47577.0,47576.0,0.00697]
[1641144768865,0.001,47577.0,47576.0,0.19697]
[1641144769267,0.00815359,47577.0,47576.0,0.19697]
[1641144769467,0.00715359,47578.0,47576.0,0.37697]
[1641144769665,0.59625848,47581.0,47577.0,0.0210179]
[1641144769864,0.59625848,47581.0,47580.0,0.00697]
[1641144770066,0.59625848,47581.0,47580.0,0.14730567]
[1641144770465,0.001,47581.0,47580.0,0.32730567]
[1641144770867,0.001,47581.0,47580.0,0.53324806]
[1641144771667,0.001,47581.0,47580.0,0.35324806]
[1641144772067,0.001,47581.0,47580.0,0.33924806]
[1641144772467,0.001,47581.0,47580.0,0.15924806]
[1641144772667,0.001,47581.0,47580.0,0.15227806]
[1641144772867,0.001,47581.0,47580.0,0.34727806]
[1641144773267,0.001,47581.0,47580.0,0.33533567]
[1641144774071,0.001,47581.0,47580.0,0.195]
[1641144774271,0.001,47581.0,47577.0,0.009794]
[1641144774478,0.09936266,47585.0,47577.0,0.009794]
[1641144774678,0.21936266,47585.0,47577.0,0.009794]
[1641144774877,0.21936266,47585.0,47580.0,0.00697]
[1641144775078,0.001,47581.0,47580.0,0.00697]
[1641144775481,0.001,47581.0,47578.0,0.83118326]
[1641144775680,1.43214661,47584.0,47578.0,0.83118326]
[1641144776279,0.17303,47582.0,47579.0,0.83118326]
[1641144776780,0.17303,47582.0,47579.0,0.99318326]
[1641144777581,1.43214661,47584.0,47579.0,0.99318326]
[1641144777781,1.43214661,47583.0,47582.0,0.00697]
[1641144777981,1.43314661,47583.0,47582.0,0.00697]
[1641144778380,0.001,47583.0,47580.0,0.14033567]
[1641144778581,0.001,47581.0,47580.0,0.97151893]
[1641144779480,0.10144352,47581.0,47580.0,0.14730567]
[1641144780383,0.10044352,47581.0,47580.0,0.32730567]
[1641144780792,0.10044352,47581.0,47580.0,0.33730567]
[1641144781195,0.10044352,47581.0,47580.0,0.34924826]
[1641144781393,0.001,47581.0,47580.0,0.34924826]
[1641144781593,1.43214661,47589.0,47580.0,0.33730567]
[1641144781792,1.43214661,47589.0,47580.0,0.34924808]
[1641144782194,1.43214661,47589.0,47580.0,0.14033567]
[1641144782393,0.10044352,47581.0,47580.0,0.14033567]
[1641144782592,0.10044352,47581.0,47580.0,0.14730567]
[1641144782792,0.10044352,47581.0,47580.0,0.28830567]
[1641144782992,1.43214661,47589.0,47580.0,0.28830567]
[1641144783193,1.43214661,47589.0,47580.0,0.300248]
[1641144783394,1.43214661,47589.0,47588.0,0.00697]
[1641144783594,1.55314661,47589.0,47584.0,0.83559387]
[1641144783894,0.05303,47588.0,47586.0,0.59685277]
[1641144784094,0.001,47587.0,47586.0,0.59685277]
[1641144784595,0.001,47587.0,47584.0,0.59685277]
[1641144784796,0.17403,47585.0,47584.0,0.59685277]
[1641144785394,0.18021608,47585.0,47584.0,0.59685277]
[1641144786394,0.18021608,47585.0,47581.0,0.59685277]
[1641144786596,0.17303,47582.0,47581.0,0.59685277]
[1641144786794,0.23684,47582.0,47581.0,0.59685277]
[1641144787196,0.24302608,47582.0,47581.0,0.59685277]
[1641144787695,0.06999608,47582.0,47581.0,0.00697]
[1641144787998,0.00618608,47582.0,47581.0,0.00697]
[1641144788197,0.1066296,47582.0,47581.0,0.00697]
[1641144788496,0.10044352,47582.0,47580.0,0.14033567]
[1641144788896,0.1066296,47582.0,47581.0,0.171]
[1641144789095,0.10044352,47582.0,47581.0,0.171]
[1641144789799,1.53210475,47582.0,47581.0,0.171]
[1641144790098,1.53210475,47582.0,47580.0,0.14033567]
[1641144790297,1.59514475,47582.0,47580.0,0.14033567]
[1641144790898,1.59514475,47582.0,47580.0,0.31733567]
[1641144791300,1.59514475,47582.0,47581.0,0.00697]
[1641144791700,1.49470123,47582.0,47581.0,0.00697]
[1641144792602,0.06304,47582.0,47581.0,0.00697]
[1641144792800,0.06304,47582.0,47581.0,0.17697]
[1641144794300,0.06304,47582.0,47581.0,0.00697]
[1641144794600,1.43166123,47583.0,47581.0,0.00697]
[1641144794800,1.43166123,47583.0,47581.0,0.17697]
[1641144795501,1.43166123,47583.0,47581.0,0.17]
[1641144796701,1.43166123,47583.0,47580.0,0.74415844]
[1641144796901,1.43166123,47583.0,47581.0,0.161]
[1641144797200,1.43166123,47582.0,47581.0,0.161]
[1641144798101,1.43166123,47583.0,47581.0,0.161]
[1641144798303,1.43166123,47583.0,47580.0,0.14730567]
[1641144798804,1.43166123,47582.0,47580.0,0.31830567]
[1641144799011,0.001,47581.0,47577.0,0.83559387]
[1641144799208,0.17403,47578.0,47568.0,1.42416384]
[1641144799410,0.17303,47572.0,47571.0,0.0841271]
[1641144799607,0.2444,47572.0,47551.0,0.00697]
[1641144799804,0.2444,47572.0,47545.0,1.8835]
[1641144799805,0.17303,47562.0,47549.0,1.6568942]
[1641144800007,0.17303,47555.0,47552.0,0.13439774]
[1641144800207,0.08519,47562.0,47552.0,0.13439774]
[1641144800508,0.42100701,47553.0,47533.0,0.14033567]
[1641144800705,0.12,47545.0,47533.0,0.14033567]
[1641144801005,0.25179,47545.0,47533.0,0.14033567]
[1641144801205,0.25179,47545.0,47539.0,0.01195293]
[1641144801404,0.25179,47545.0,47539.0,0.00975293]
[1641144801608,0.07876,47545.0,47544.0,0.00697]
[1641144801805,0.07976,47545.0,47543.0,0.00697]
[1641144802006,0.001,47544.0,47534.0,0.00697]